[Event "November 21 Early 2023"]
[Site "https://www.chess.com"]
[Date "2023.11.21"]
[Round "3"]
[White "Sharafiev, Azat"]
[Black "Osiecki, Stanislaw"]
[Result "1/2-1/2"]
[Board "230"]
[TimeControl "180+1"]
[WhiteFideId "4186214"]
[BlackFideId "1102990"]
[WhiteElo "2306"]
[BlackElo "2048"]
[WhiteTeam "RUS"]
[BlackTeam "POL"]
[WhiteClock "0:00:08"]
[BlackClock "0:00:02"]

1. e4 {[%clk 0:02:58]}  e6 {[%clk 0:02:59]} 2. d4 {[%clk 0:02:57]}  d5 {[%clk 0:02:58]} 3. Nc3 {[%clk 0:02:56]}  Bb4 {[%clk 0:02:57]} 4. e5 {[%clk 0:02:56]}  c5 {[%clk 0:02:56]} 5. a3 {[%clk 0:02:56]}  Bxc3+ {[%clk 0:02:56]} 6. bxc3 {[%clk 0:02:57]}  Qc7 {[%clk 0:02:56]} 7. Nf3 {[%clk 0:02:32]}  Ne7 {[%clk 0:02:55]} 8. Bb5+ {[%clk 0:02:30]}  Bd7 {[%clk 0:02:54]} 9. Bxd7+ {[%clk 0:02:30]}  Nxd7 {[%clk 0:02:53]} 10. O-O {[%clk 0:02:30]}  cxd4 {[%clk 0:02:54]} 11. cxd4 {[%clk 0:02:30]}  Rc8 {[%clk 0:02:53]} 12. Bd2 {[%clk 0:01:57]}  Qxc2 {[%clk 0:02:46]} 13. Bb4 {[%clk 0:01:57]}  Qxd1 {[%clk 0:02:46]} 14. Rfxd1 {[%clk 0:01:57]}  Rc4 {[%clk 0:02:38]} 15. Rd3 {[%clk 0:01:46]}  f6 {[%clk 0:02:24]} 16. exf6 {[%clk 0:01:42]}  gxf6 {[%clk 0:02:24]} 17. Re1 {[%clk 0:01:40]}  Kf7 {[%clk 0:02:24]} 18. Rde3 {[%clk 0:01:35]}  Nf8 {[%clk 0:02:24]} 19. h4 {[%clk 0:01:07]}  Nf5 {[%clk 0:02:19]} 20. R3e2 {[%clk 0:00:57]}  Nxd4 {[%clk 0:02:10]} 21. Nxd4 {[%clk 0:00:57]}  Rxd4 {[%clk 0:02:10]} 22. Bxf8 {[%clk 0:00:58]}  Rxf8 {[%clk 0:02:08]} 23. Rxe6 {[%clk 0:00:58]}  Kg7 {[%clk 0:02:03]} 24. g3 {[%clk 0:00:51]}  Rf7 {[%clk 0:02:02]} 25. R1e3 {[%clk 0:00:49]}  Rd1+ {[%clk 0:01:58]} 26. Kg2 {[%clk 0:00:49]}  d4 {[%clk 0:01:54]} 27. R3e4 {[%clk 0:00:47]}  f5 {[%clk 0:01:51]} 28. Rf4 {[%clk 0:00:43]}  d3 {[%clk 0:01:49]} 29. Rd6 {[%clk 0:00:42]}  d2 {[%clk 0:01:44]} 30. Rfd4 {[%clk 0:00:39]}  Ra1 {[%clk 0:01:42]} 31. Rxd2 {[%clk 0:00:37]}  Rxa3 {[%clk 0:01:42]} 32. Rb2 {[%clk 0:00:32]}  Rc3 {[%clk 0:01:31]} 33. Rd5 {[%clk 0:00:32]}  Rc6 {[%clk 0:01:26]} 34. Kf3 {[%clk 0:00:31]}  b6 {[%clk 0:01:21]} 35. Rb3 {[%clk 0:00:17]}  Kf6 {[%clk 0:01:11]} 36. Kf4 {[%clk 0:00:17]}  Rc4+ {[%clk 0:01:09]} 37. Kf3 {[%clk 0:00:18]}  Ke6 {[%clk 0:01:07]} 38. Rd8 {[%clk 0:00:18]}  Rfc7 {[%clk 0:00:54]} 39. Re3+ {[%clk 0:00:17]}  Kf7 {[%clk 0:00:54]} 40. Ra8 {[%clk 0:00:15]}  Rc3 {[%clk 0:00:52]} 41. Rxc3 {[%clk 0:00:15]}  Rxc3+ {[%clk 0:00:51]} 42. Kf4 {[%clk 0:00:16]}  Ra3 {[%clk 0:00:49]} 43. Kxf5 {[%clk 0:00:16]}  b5 {[%clk 0:00:50]} 44. Ke4 {[%clk 0:00:15]}  b4 {[%clk 0:00:48]} 45. Kd4 {[%clk 0:00:16]}  a5 {[%clk 0:00:48]} 46. Kc4 {[%clk 0:00:12]}  b3 {[%clk 0:00:41]} 47. Kc3 {[%clk 0:00:13]}  a4 {[%clk 0:00:40]} 48. Rb8 {[%clk 0:00:13]}  Ra2 {[%clk 0:00:39]} 49. Rb4 {[%clk 0:00:10]}  h5 {[%clk 0:00:12]} 50. f4 {[%clk 0:00:08]}  Rc2+ {[%clk 0:00:06]} 51. Kd3 {[%clk 0:00:08]}  Rg2 {[%clk 0:00:04]} 52. Rxa4 {[%clk 0:00:06]}  Rxg3+ {[%clk 0:00:05]} 53. Kd2 {[%clk 0:00:06]}  b2 {[%clk 0:00:03]} 54. Kc2 {[%clk 0:00:05]}  Rg2+ {[%clk 0:00:03]} 55. Kb1 {[%clk 0:00:06]}  Kf6 {[%clk 0:00:03]} 56. Ra5 {[%clk 0:00:05]}  Rg4 {[%clk 0:00:01]} 57. Rxh5 {[%clk 0:00:06]}  Rxf4 {[%clk 0:00:01]} 58. Kxb2 {[%clk 0:00:07]}  Rf5 {[%clk 0:00:01]} 59. Rxf5+ {[%clk 0:00:06]}  Kxf5 {[%clk 0:00:01]} 60. h5 {[%clk 0:00:07]}  Kg5 {[%clk 0:00:02]} 61. h6 {[%clk 0:00:08]}  Kxh6 {[%clk 0:00:02]} 1/2-1/2

[Event "November 21 Early 2023"]
[Site "https://www.chess.com"]
[Date "2023.11.21"]
[Round "3"]
[White "Castillo Pena, Patricia Evarista"]
[Black "Matthes, Aaron"]
[Result "1-0"]
[Board "237"]
[TimeControl "180+1"]
[WhiteFideId "6412106"]
[BlackFideId "16227310"]
[WhiteElo "1861"]
[BlackElo "2355"]
[WhiteTeam "DOM"]
[BlackTeam "GER"]
[WhiteClock "0:00:13"]
[BlackClock "0:00:09"]

1. d4 {[%clk 0:02:59]}  g6 {[%clk 0:03:00]} 2. Nc3 {[%clk 0:02:56]}  Bg7 {[%clk 0:02:59]} 3. e4 {[%clk 0:02:54]}  c5 {[%clk 0:02:58]} 4. Nf3 {[%clk 0:02:50]}  cxd4 {[%clk 0:02:54]} 5. Nxd4 {[%clk 0:02:48]}  d6 {[%clk 0:02:53]} 6. Be3 {[%clk 0:02:44]}  Nf6 {[%clk 0:02:53]} 7. Qd2 {[%clk 0:02:38]}  Nc6 {[%clk 0:02:43]} 8. f3 {[%clk 0:02:23]}  O-O {[%clk 0:02:39]} 9. h4 {[%clk 0:02:19]}  Qa5 {[%clk 0:02:39]} 10. O-O-O {[%clk 0:02:15]}  Nd7 {[%clk 0:02:32]} 11. Nxc6 {[%clk 0:02:10]}  bxc6 {[%clk 0:02:33]} 12. Kb1 {[%clk 0:02:10]}  Rb8 {[%clk 0:02:31]} 13. Bd4 {[%clk 0:01:50]}  Rxb2+ {[%clk 0:01:53]} 14. Kxb2 {[%clk 0:01:45]}  Qb4+ {[%clk 0:01:53]} 15. Kc1 {[%clk 0:01:43]}  Bxd4 {[%clk 0:01:53]} 16. Qxd4 {[%clk 0:01:42]}  Qa3+ {[%clk 0:01:49]} 17. Kd2 {[%clk 0:01:40]}  Nc5 {[%clk 0:01:41]} 18. Bc4 {[%clk 0:01:29]}  e5 {[%clk 0:01:06]} 19. Qe3 {[%clk 0:01:04]}  Qb4 {[%clk 0:01:06]} 20. Bb3 {[%clk 0:00:59]}  Ba6 {[%clk 0:01:04]} 21. Ke1 {[%clk 0:00:56]}  Rd8 {[%clk 0:00:56]} 22. Kf2 {[%clk 0:00:54]}  Kg7 {[%clk 0:00:48]} 23. h5 {[%clk 0:00:53]}  d5 {[%clk 0:00:35]} 24. exd5 {[%clk 0:00:46]}  cxd5 {[%clk 0:00:29]} 25. Qxe5+ {[%clk 0:00:44]}  Kg8 {[%clk 0:00:19]} 26. h6 {[%clk 0:00:39]}  Ne6 {[%clk 0:00:16]} 27. Nxd5 {[%clk 0:00:31]}  Rc8 {[%clk 0:00:12]} 28. Nf6+ {[%clk 0:00:28]}  Kf8 {[%clk 0:00:12]} 29. Nxh7+ {[%clk 0:00:25]}  Kg8 {[%clk 0:00:12]} 30. Nf6+ {[%clk 0:00:24]}  Kf8 {[%clk 0:00:13]} 31. Nd7+ {[%clk 0:00:24]}  Ke7 {[%clk 0:00:13]} 32. Qf6+ {[%clk 0:00:20]}  Ke8 {[%clk 0:00:13]} 33. Qh8+ {[%clk 0:00:16]}  Ke7 {[%clk 0:00:12]} 34. Qf6+ {[%clk 0:00:13]}  Ke8 {[%clk 0:00:13]} 35. Rhe1 {[%clk 0:00:09]}  Rc6 {[%clk 0:00:06]} 36. Bxe6 {[%clk 0:00:08]}  Rxc2+ {[%clk 0:00:03]} 37. Kg1 {[%clk 0:00:05]}  Rxg2+ {[%clk 0:00:03]} 38. Kh1 {[%clk 0:00:06]}  Rh2+ {[%clk 0:00:02]} 39. Kxh2 {[%clk 0:00:06]}  Qh4+ {[%clk 0:00:02]} 40. Kg1 {[%clk 0:00:06]}  Qxf6 {[%clk 0:00:03]} 41. Nxf6+ {[%clk 0:00:06]}  Ke7 {[%clk 0:00:04]} 42. Ng8+ {[%clk 0:00:06]}  Kf8 {[%clk 0:00:03]} 43. Nf6 {[%clk 0:00:06]}  fxe6 {[%clk 0:00:04]} 44. Rxe6 {[%clk 0:00:05]}  Kf7 {[%clk 0:00:04]} 45. Rd7+ {[%clk 0:00:05]}  Kxe6 {[%clk 0:00:04]} 46. Rxa7 {[%clk 0:00:05]}  Kxf6 {[%clk 0:00:05]} 47. Rxa6+ {[%clk 0:00:06]}  Kg5 {[%clk 0:00:05]} 48. Ra4 {[%clk 0:00:07]}  Kxh6 {[%clk 0:00:05]} 49. Ra5 {[%clk 0:00:08]}  Kg7 {[%clk 0:00:04]} 50. Ra6 {[%clk 0:00:09]}  Kh6 {[%clk 0:00:05]} 51. Rxg6+ {[%clk 0:00:10]}  Kxg6 {[%clk 0:00:04]} 52. a4 {[%clk 0:00:10]}  Kf5 {[%clk 0:00:05]} 53. a5 {[%clk 0:00:11]}  Ke5 {[%clk 0:00:06]} 54. a6 {[%clk 0:00:12]}  Kd6 {[%clk 0:00:07]} 55. a7 {[%clk 0:00:13]}  Ke5 {[%clk 0:00:07]} 56. a8=Q {[%clk 0:00:13]}  Kf4 {[%clk 0:00:08]} 57. Qe4+ {[%clk 0:00:13]}  Kg3 {[%clk 0:00:09]} 58. Qg4# {[%clk 0:00:13]} 1-0

[Event "November 21 Early 2023"]
[Site "https://www.chess.com"]
[Date "2023.11.21"]
[Round "3"]
[White "GMT4114"]
[Black "Dmitrenko, Viktor"]
[Result "0-1"]
[Board "238"]
[TimeControl "180+1"]
[BlackFideId "14110270"]
[WhiteElo "1964"]
[BlackElo "2292"]
[BlackTeam "UKR"]
[WhiteClock "0:00:08"]
[BlackClock "0:01:06"]

1. e4 {[%clk 0:03:00]}  e6 {[%clk 0:02:48]} 2. d4 {[%clk 0:03:00]}  d5 {[%clk 0:02:49]} 3. Nc3 {[%clk 0:03:00]}  Bb4 {[%clk 0:02:38]} 4. Ne2 {[%clk 0:03:00]}  dxe4 {[%clk 0:02:36]} 5. a3 {[%clk 0:03:00]}  Bxc3+ {[%clk 0:02:37]} 6. Nxc3 {[%clk 0:03:01]}  Nc6 {[%clk 0:02:37]} 7. Nxe4 {[%clk 0:02:57]}  Qxd4 {[%clk 0:02:34]} 8. Qxd4 {[%clk 0:02:38]}  Nxd4 {[%clk 0:02:35]} 9. Bd3 {[%clk 0:02:38]}  b6 {[%clk 0:02:29]} 10. Be3 {[%clk 0:02:36]}  Nc6 {[%clk 0:02:23]} 11. O-O-O {[%clk 0:02:35]}  Bb7 {[%clk 0:02:23]} 12. Bb5 {[%clk 0:02:34]}  a6 {[%clk 0:02:21]} 13. Ba4 {[%clk 0:02:28]}  Ne7 {[%clk 0:02:21]} 14. Bf4 {[%clk 0:02:25]}  Nd5 {[%clk 0:02:15]} 15. Bg3 {[%clk 0:02:06]}  O-O-O {[%clk 0:02:12]} 16. Rhe1 {[%clk 0:02:01]}  h6 {[%clk 0:02:09]} 17. f3 {[%clk 0:01:47]}  Na5 {[%clk 0:01:54]} 18. Nd2 {[%clk 0:01:19]}  Bc6 {[%clk 0:01:40]} 19. Bxc6 {[%clk 0:01:17]}  Nxc6 {[%clk 0:01:41]} 20. Nc4 {[%clk 0:01:09]}  Rd7 {[%clk 0:01:39]} 21. Nd2 {[%clk 0:00:42]}  Rhd8 {[%clk 0:01:35]} 22. Ne4 {[%clk 0:00:38]}  Nde7 {[%clk 0:01:32]} 23. c4 {[%clk 0:00:36]}  Nd4 {[%clk 0:01:30]} 24. c5 {[%clk 0:00:28]}  Nef5 {[%clk 0:01:25]} 25. cxb6 {[%clk 0:00:21]}  cxb6 {[%clk 0:01:26]} 26. Rd3 {[%clk 0:00:16]}  Ne2+ {[%clk 0:01:23]} 27. Rxe2 {[%clk 0:00:15]}  Rxd3 {[%clk 0:01:24]} 28. Rc2+ {[%clk 0:00:14]}  Kd7 {[%clk 0:01:19]} 29. Bf2 {[%clk 0:00:15]}  Rc8 {[%clk 0:01:11]} 30. Bxb6 {[%clk 0:00:13]}  Rxc2+ {[%clk 0:01:08]} 31. Kxc2 {[%clk 0:00:14]}  Rd5 {[%clk 0:01:07]} 32. Nc5+ {[%clk 0:00:13]}  Kc6 {[%clk 0:01:06]} 33. Ba7 {[%clk 0:00:12]}  Rxc5+ {[%clk 0:01:05]} 34. Bxc5 {[%clk 0:00:12]}  Kxc5 {[%clk 0:01:06]} 35. b4+ {[%clk 0:00:08]}  Kb5 {[%clk 0:01:06]} 0-1

[Event "November 21 Early 2023"]
[Site "https://www.chess.com"]
[Date "2023.11.21"]
[Round "3"]
[White "IsaqueGoncalvesSanto"]
[Black "Zivic, Dragan"]
[Result "1/2-1/2"]
[Board "240"]
[TimeControl "180+1"]
[BlackFideId "904740"]
[WhiteElo "1909"]
[BlackElo "2073"]
[BlackTeam "SRB"]
[WhiteClock "0:01:06"]
[BlackClock "0:01:55"]

1. d4 {[%clk 0:03:00]}  Nf6 {[%clk 0:02:57]} 2. c4 {[%clk 0:03:00]}  e6 {[%clk 0:02:56]} 3. Nc3 {[%clk 0:03:00]}  Bb4 {[%clk 0:02:55]} 4. e3 {[%clk 0:02:58]}  b6 {[%clk 0:02:52]} 5. Bd3 {[%clk 0:02:54]}  Bb7 {[%clk 0:02:51]} 6. f3 {[%clk 0:02:53]}  d5 {[%clk 0:02:48]} 7. Ne2 {[%clk 0:02:51]}  O-O {[%clk 0:02:47]} 8. a3 {[%clk 0:02:50]}  Be7 {[%clk 0:02:46]} 9. b4 {[%clk 0:02:44]}  c5 {[%clk 0:02:46]} 10. cxd5 {[%clk 0:02:33]}  cxd4 {[%clk 0:02:38]} 11. Nxd4 {[%clk 0:02:27]}  Nxd5 {[%clk 0:02:34]} 12. Nxd5 {[%clk 0:02:25]}  Bxd5 {[%clk 0:02:29]} 13. O-O {[%clk 0:02:22]}  Nc6 {[%clk 0:02:27]} 14. Bb2 {[%clk 0:02:13]}  Nxd4 {[%clk 0:02:27]} 15. Bxd4 {[%clk 0:02:06]}  Bf6 {[%clk 0:02:27]} 16. Bxf6 {[%clk 0:01:52]}  Qxf6 {[%clk 0:02:28]} 17. e4 {[%clk 0:01:45]}  Bb7 {[%clk 0:02:22]} 18. Qe2 {[%clk 0:01:37]}  Rfd8 {[%clk 0:02:20]} 19. Rfd1 {[%clk 0:01:33]}  g6 {[%clk 0:02:16]} 20. Ba6 {[%clk 0:01:29]}  Bxa6 {[%clk 0:02:02]} 21. Qxa6 {[%clk 0:01:28]}  Rxd1+ {[%clk 0:02:03]} 22. Rxd1 {[%clk 0:01:27]}  Rd8 {[%clk 0:02:01]} 23. Rxd8+ {[%clk 0:01:14]}  Qxd8 {[%clk 0:02:02]} 24. Qxa7 {[%clk 0:01:14]}  Qd4+ {[%clk 0:02:02]} 25. Kf1 {[%clk 0:01:13]}  Qd3+ {[%clk 0:01:57]} 26. Kf2 {[%clk 0:01:13]}  Qd4+ {[%clk 0:01:57]} 27. Kg3 {[%clk 0:01:12]}  Qe5+ {[%clk 0:01:55]} 28. Kf2 {[%clk 0:01:09]}  Qd4+ {[%clk 0:01:55]} 29. Kg3 {[%clk 0:01:06]}  Qe5+ {[%clk 0:01:55]} 30. Kf2 {[%clk 0:01:06]}  Qd4+ {[%clk 0:01:55]} 1/2-1/2

[Event "November 21 Early 2023"]
[Site "https://www.chess.com"]
[Date "2023.11.21"]
[Round "3"]
[White "Saim, Mohamed Ilias"]
[Black "Shapiro, Daniel"]
[Result "0-1"]
[Board "241"]
[TimeControl "180+1"]
[WhiteFideId "7900465"]
[BlackFideId "2001780"]
[WhiteElo "2063"]
[BlackElo "2327"]
[WhiteTeam "ALG"]
[BlackTeam "USA"]
[WhiteClock "0:01:43"]
[BlackClock "0:01:34"]

1. a3 {[%clk 0:03:00]}  g6 {[%clk 0:02:58]} 2. Nf3 {[%clk 0:02:59]}  Bg7 {[%clk 0:02:58]} 3. d4 {[%clk 0:02:58]}  d6 {[%clk 0:02:43]} 4. c4 {[%clk 0:02:58]}  f5 {[%clk 0:02:41]} 5. e3 {[%clk 0:02:57]}  Nf6 {[%clk 0:02:41]} 6. Be2 {[%clk 0:02:57]}  O-O {[%clk 0:02:41]} 7. Nc3 {[%clk 0:02:57]}  Nc6 {[%clk 0:02:37]} 8. b4 {[%clk 0:02:57]}  e5 {[%clk 0:02:24]} 9. b5 {[%clk 0:02:56]}  Ne7 {[%clk 0:02:24]} 10. a4 {[%clk 0:02:56]}  e4 {[%clk 0:02:21]} 11. Nd2 {[%clk 0:02:56]}  c6 {[%clk 0:02:15]} 12. Qb3 {[%clk 0:02:54]}  Be6 {[%clk 0:02:15]} 13. Ba3 {[%clk 0:02:53]}  Rf7 {[%clk 0:02:08]} 14. a5 {[%clk 0:02:50]}  a6 {[%clk 0:02:05]} 15. bxc6 {[%clk 0:02:34]}  bxc6 {[%clk 0:02:05]} 16. Qb4 {[%clk 0:02:29]}  c5 {[%clk 0:01:54]} 17. dxc5 {[%clk 0:02:19]}  dxc5 {[%clk 0:01:54]} 18. Qxc5 {[%clk 0:02:18]}  Nd7 {[%clk 0:01:47]} 19. Qd6 {[%clk 0:02:11]}  Bxc3 {[%clk 0:01:44]} 20. O-O {[%clk 0:01:55]}  Nf8 {[%clk 0:01:37]} 21. Rac1 {[%clk 0:01:44]}  Qxd6 {[%clk 0:01:35]} 22. Bxd6 {[%clk 0:01:43]}  Bxd2 {[%clk 0:01:34]} 0-1

[Event "November 21 Early 2023"]
[Site "https://www.chess.com"]
[Date "2023.11.21"]
[Round "4"]
[White "Bortnyk, Olexandr"]
[Black "Szpar, Milosz"]
[Result "1-0"]
[Board "7"]
[TimeControl "180+1"]
[WhiteFideId "14120828"]
[BlackFideId "1184989"]
[WhiteElo "2725"]
[BlackElo "2446"]
[WhiteTeam "UKR"]
[BlackTeam "POL"]
[WhiteClock "0:00:42"]
[BlackClock "0:00:05"]

1. e4 {[%clk 0:03:00]}  c5 {[%clk 0:02:59]} 2. Be2 {[%clk 0:02:57]}  Nc6 {[%clk 0:02:54]} 3. f4 {[%clk 0:02:55]}  d5 {[%clk 0:02:46]} 4. d3 {[%clk 0:02:55]}  g6 {[%clk 0:02:43]} 5. Nf3 {[%clk 0:02:54]}  Nf6 {[%clk 0:02:28]} 6. e5 {[%clk 0:02:50]}  Nh5 {[%clk 0:02:26]} 7. O-O {[%clk 0:02:45]}  Bh6 {[%clk 0:02:23]} 8. Ng5 {[%clk 0:02:11]}  Ng7 {[%clk 0:02:15]} 9. c3 {[%clk 0:02:01]}  Bxg5 {[%clk 0:02:05]} 10. fxg5 {[%clk 0:02:00]}  Nxe5 {[%clk 0:02:06]} 11. d4 {[%clk 0:02:00]}  Nc6 {[%clk 0:01:46]} 12. dxc5 {[%clk 0:01:59]}  O-O {[%clk 0:01:47]} 13. Bf3 {[%clk 0:01:56]}  e6 {[%clk 0:01:29]} 14. b4 {[%clk 0:01:55]}  a5 {[%clk 0:01:28]} 15. b5 {[%clk 0:01:55]}  Ne5 {[%clk 0:01:28]} 16. Bf4 {[%clk 0:01:54]}  Nd7 {[%clk 0:00:51]} 17. Bd6 {[%clk 0:01:26]}  Nf5 {[%clk 0:00:51]} 18. Bxf8 {[%clk 0:01:24]}  Qxf8 {[%clk 0:00:52]} 19. Qe2 {[%clk 0:01:09]}  Qxc5+ {[%clk 0:00:51]} 20. Kh1 {[%clk 0:01:09]}  Nb6 {[%clk 0:00:44]} 21. Nd2 {[%clk 0:01:07]}  Bd7 {[%clk 0:00:43]} 22. c4 {[%clk 0:01:05]}  Ne3 {[%clk 0:00:36]} 23. Nb3 {[%clk 0:00:55]}  Qb4 {[%clk 0:00:26]} 24. Qxe3 {[%clk 0:00:55]}  Nxc4 {[%clk 0:00:27]} 25. Qf4 {[%clk 0:00:47]}  a4 {[%clk 0:00:27]} 26. Bxd5 {[%clk 0:00:41]}  exd5 {[%clk 0:00:19]} 27. Qxf7+ {[%clk 0:00:41]}  Kh8 {[%clk 0:00:19]} 28. Qxd7 {[%clk 0:00:42]}  axb3 {[%clk 0:00:15]} 29. Rf7 {[%clk 0:00:41]}  b2 {[%clk 0:00:04]} 30. Rxh7+ {[%clk 0:00:41]}  Kg8 {[%clk 0:00:05]} 31. Qg7# {[%clk 0:00:42]} 1-0

[Event "November 21 Early 2023"]
[Site "https://www.chess.com"]
[Date "2023.11.21"]
[Round "4"]
[White "Kravtsiv, Martyn"]
[Black "Nguyen, Ngoc Truong Son"]
[Result "1/2-1/2"]
[Board "8"]
[TimeControl "180+1"]
[WhiteFideId "14113147"]
[BlackFideId "12401110"]
[WhiteElo "2689"]
[BlackElo "2556"]
[WhiteTeam "UKR"]
[BlackTeam "VIE"]
[WhiteClock "0:00:25"]
[BlackClock "0:00:07"]

1. e4 {[%clk 0:03:00]}  a6 {[%clk 0:02:54]} 2. g3 {[%clk 0:02:54]}  e6 {[%clk 0:02:51]} 3. Bg2 {[%clk 0:02:54]}  d5 {[%clk 0:02:52]} 4. exd5 {[%clk 0:02:50]}  exd5 {[%clk 0:02:52]} 5. Ne2 {[%clk 0:02:50]}  c6 {[%clk 0:02:52]} 6. O-O {[%clk 0:02:50]}  Bd6 {[%clk 0:02:52]} 7. Re1 {[%clk 0:02:43]}  Ne7 {[%clk 0:02:52]} 8. b3 {[%clk 0:02:42]}  O-O {[%clk 0:02:48]} 9. Bb2 {[%clk 0:02:43]}  Bg4 {[%clk 0:02:35]} 10. h3 {[%clk 0:02:42]}  Bh5 {[%clk 0:02:35]} 11. d3 {[%clk 0:02:36]}  Nd7 {[%clk 0:02:30]} 12. Nd2 {[%clk 0:02:36]}  Re8 {[%clk 0:02:08]} 13. g4 {[%clk 0:02:24]}  Bg6 {[%clk 0:02:06]} 14. f4 {[%clk 0:02:24]}  h5 {[%clk 0:02:00]} 15. f5 {[%clk 0:02:14]}  Bxf5 {[%clk 0:01:48]} 16. gxf5 {[%clk 0:02:14]}  Nxf5 {[%clk 0:01:48]} 17. Nf1 {[%clk 0:02:14]}  Qg5 {[%clk 0:01:40]} 18. Qd2 {[%clk 0:02:10]}  Qh4 {[%clk 0:01:21]} 19. Kh1 {[%clk 0:01:29]}  Nf6 {[%clk 0:00:56]} 20. Ng1 {[%clk 0:01:26]}  Ng4 {[%clk 0:00:54]} 21. Nf3 {[%clk 0:01:25]}  Nf2+ {[%clk 0:00:53]} 22. Kg1 {[%clk 0:01:22]}  Nxh3+ {[%clk 0:00:53]} 23. Bxh3 {[%clk 0:01:20]}  Qxh3 {[%clk 0:00:54]} 24. Qg2 {[%clk 0:01:20]}  Qxg2+ {[%clk 0:00:50]} 25. Kxg2 {[%clk 0:01:21]}  f6 {[%clk 0:00:50]} 26. Rxe8+ {[%clk 0:01:18]}  Rxe8 {[%clk 0:00:49]} 27. Re1 {[%clk 0:01:18]}  Rxe1 {[%clk 0:00:46]} 28. Nxe1 {[%clk 0:01:19]}  Kf7 {[%clk 0:00:46]} 29. c4 {[%clk 0:01:19]}  g5 {[%clk 0:00:41]} 30. Nc2 {[%clk 0:01:19]}  dxc4 {[%clk 0:00:24]} 31. bxc4 {[%clk 0:01:19]}  Nh4+ {[%clk 0:00:21]} 32. Kf2 {[%clk 0:01:15]}  Ng6 {[%clk 0:00:22]} 33. Ng3 {[%clk 0:01:10]}  Nf4 {[%clk 0:00:21]} 34. Ne1 {[%clk 0:01:08]}  Kg6 {[%clk 0:00:18]} 35. Ne4 {[%clk 0:01:06]}  Bb4 {[%clk 0:00:18]} 36. Bxf6 {[%clk 0:01:04]}  g4 {[%clk 0:00:14]} 37. Bc3 {[%clk 0:00:59]}  Bxc3 {[%clk 0:00:13]} 38. Nxc3 {[%clk 0:01:00]}  h4 {[%clk 0:00:13]} 39. Ne2 {[%clk 0:00:54]}  g3+ {[%clk 0:00:10]} 40. Kf3 {[%clk 0:00:47]}  Nxe2 {[%clk 0:00:08]} 41. Kxe2 {[%clk 0:00:48]}  h3 {[%clk 0:00:09]} 42. Kf3 {[%clk 0:00:48]}  h2 {[%clk 0:00:07]} 43. Kg2 {[%clk 0:00:47]}  Kf5 {[%clk 0:00:07]} 44. Nc2 {[%clk 0:00:45]}  Kf4 {[%clk 0:00:06]} 45. c5 {[%clk 0:00:45]}  Ke5 {[%clk 0:00:05]} 46. Ne3 {[%clk 0:00:42]}  Kd4 {[%clk 0:00:05]} 47. Nf5+ {[%clk 0:00:42]}  Kxd3 {[%clk 0:00:05]} 48. Nxg3 {[%clk 0:00:42]}  Kd4 {[%clk 0:00:05]} 49. Kxh2 {[%clk 0:00:43]}  Kxc5 {[%clk 0:00:06]} 50. Kg2 {[%clk 0:00:44]}  Kb4 {[%clk 0:00:07]} 51. Kf2 {[%clk 0:00:44]}  Ka3 {[%clk 0:00:07]} 52. Ne4 {[%clk 0:00:41]}  Kxa2 {[%clk 0:00:08]} 53. Nc5 {[%clk 0:00:41]}  a5 {[%clk 0:00:09]} 54. Nxb7 {[%clk 0:00:37]}  a4 {[%clk 0:00:09]} 55. Na5 {[%clk 0:00:26]}  c5 {[%clk 0:00:09]} 56. Ke2 {[%clk 0:00:25]}  a3 {[%clk 0:00:08]} 57. Kd2 {[%clk 0:00:25]}  Kb1 {[%clk 0:00:09]} 58. Kc3 {[%clk 0:00:23]}  a2 {[%clk 0:00:07]} 59. Nb3 {[%clk 0:00:24]}  a1=Q+ {[%clk 0:00:06]} 60. Nxa1 {[%clk 0:00:24]}  Kxa1 {[%clk 0:00:07]} 61. Kc4 {[%clk 0:00:24]}  Kb2 {[%clk 0:00:07]} 62. Kxc5 {[%clk 0:00:25]} 1/2-1/2

[Event "November 21 Early 2023"]
[Site "https://www.chess.com"]
[Date "2023.11.21"]
[Round "4"]
[White "Narayanan, Srinath"]
[Black "Le, Tuan Minh"]
[Result "0-1"]
[Board "10"]
[TimeControl "180+1"]
[WhiteFideId "5018420"]
[BlackFideId "12401153"]
[WhiteElo "2442"]
[BlackElo "2561"]
[WhiteTeam "IND"]
[BlackTeam "VIE"]
[WhiteClock "0:00:00"]
[BlackClock "0:00:14"]

1. d4 {[%clk 0:03:00]}  d5 {[%clk 0:03:00]} 2. c4 {[%clk 0:03:01]}  c6 {[%clk 0:03:00]} 3. Nf3 {[%clk 0:03:01]}  Nf6 {[%clk 0:03:00]} 4. cxd5 {[%clk 0:02:59]}  cxd5 {[%clk 0:03:00]} 5. Nc3 {[%clk 0:03:00]}  Nc6 {[%clk 0:03:00]} 6. Bf4 {[%clk 0:03:01]}  a6 {[%clk 0:03:01]} 7. e3 {[%clk 0:03:00]}  Bf5 {[%clk 0:02:57]} 8. Bd3 {[%clk 0:02:59]}  Bxd3 {[%clk 0:02:56]} 9. Qxd3 {[%clk 0:02:59]}  e6 {[%clk 0:02:56]} 10. Ne5 {[%clk 0:02:59]}  Rc8 {[%clk 0:02:56]} 11. Nxc6 {[%clk 0:02:58]}  Rxc6 {[%clk 0:02:56]} 12. O-O {[%clk 0:02:58]}  Bd6 {[%clk 0:01:56]} 13. Ne2 {[%clk 0:02:52]}  Bxf4 {[%clk 0:01:52]} 14. Nxf4 {[%clk 0:02:53]}  Qc7 {[%clk 0:01:40]} 15. Qa3 {[%clk 0:02:42]}  Qe7 {[%clk 0:01:26]} 16. Qb3 {[%clk 0:01:53]}  O-O {[%clk 0:01:22]} 17. Rfc1 {[%clk 0:01:53]}  Rfc8 {[%clk 0:01:22]} 18. Rxc6 {[%clk 0:01:53]}  Rxc6 {[%clk 0:01:23]} 19. Nd3 {[%clk 0:01:53]}  Ne4 {[%clk 0:01:12]} 20. f3 {[%clk 0:01:41]}  Nd2 {[%clk 0:01:10]} 21. Qd1 {[%clk 0:01:41]}  Nc4 {[%clk 0:01:11]} 22. Qe2 {[%clk 0:01:41]}  Nd6 {[%clk 0:00:54]} 23. Qd2 {[%clk 0:01:28]}  g6 {[%clk 0:00:47]} 24. Rc1 {[%clk 0:01:11]}  Nc4 {[%clk 0:00:42]} 25. Qe2 {[%clk 0:01:07]}  Qg5 {[%clk 0:00:42]} 26. f4 {[%clk 0:00:52]}  Qd8 {[%clk 0:00:42]} 27. b3 {[%clk 0:00:51]}  Na5 {[%clk 0:00:39]} 28. Rxc6 {[%clk 0:00:47]}  Nxc6 {[%clk 0:00:40]} 29. Nc5 {[%clk 0:00:48]}  Qc7 {[%clk 0:00:37]} 30. h3 {[%clk 0:00:34]}  Ne7 {[%clk 0:00:36]} 31. Qd2 {[%clk 0:00:20]}  Nf5 {[%clk 0:00:35]} 32. Kf2 {[%clk 0:00:20]}  h5 {[%clk 0:00:35]} 33. g4 {[%clk 0:00:19]}  hxg4 {[%clk 0:00:36]} 34. hxg4 {[%clk 0:00:20]}  Nd6 {[%clk 0:00:37]} 35. Kf3 {[%clk 0:00:20]}  Kg7 {[%clk 0:00:30]} 36. g5 {[%clk 0:00:19]}  Qc8 {[%clk 0:00:27]} 37. Qh2 {[%clk 0:00:18]}  Nf5 {[%clk 0:00:27]} 38. Qd2 {[%clk 0:00:09]}  b6 {[%clk 0:00:17]} 39. Nd3 {[%clk 0:00:09]}  Qh8 {[%clk 0:00:17]} 40. Ne5 {[%clk 0:00:10]}  Qh1+ {[%clk 0:00:17]} 41. Ke2 {[%clk 0:00:10]}  Ng3+ {[%clk 0:00:15]} 42. Kd3 {[%clk 0:00:10]}  Ne4 {[%clk 0:00:14]} 43. Qb2 {[%clk 0:00:05]}  Qe1 {[%clk 0:00:14]} 44. b4 {[%clk 0:00:00]}  Qd1+ {[%clk 0:00:14]} 0-1